[Event "Titled Tuesday Blitz October 5 2021"]
[White "Tologon tegin, Semetei"]
[Black "Lashkin, Jegor"]
[WhiteFideId "13800574"]
[BlackFideId "13907808"]
[WhiteElo "2224"]
[BlackElo "2293"]
[Result "1-0"]
[Round "03"]
[TimeControl "180+1"]
[Date "2021.10.05"]
[WhiteClock "0:00:15"]
[BlackClock "0:00:04"]

1. d4 {[%clk 0:03:00]}  Nf6 {[%clk 0:03:00]} 2. c4 {[%clk 0:03:01]}  e6 {[%clk 0:03:00]} 3. Nc3 {[%clk 0:03:01]}  d5 {[%clk 0:02:59]} 4. cxd5 {[%clk 0:03:01]}  exd5 {[%clk 0:02:59]} 5. Bg5 {[%clk 0:03:01]}  c6 {[%clk 0:03:00]} 6. e3 {[%clk 0:03:01]}  g6 {[%clk 0:03:00]} 7. Bd3 {[%clk 0:03:00]}  Bg7 {[%clk 0:03:00]} 8. Nge2 {[%clk 0:02:58]}  O-O {[%clk 0:03:00]} 9. O-O {[%clk 0:02:58]}  Re8 {[%clk 0:03:00]} 10. Qc2 {[%clk 0:02:57]}  Nbd7 {[%clk 0:03:00]} 11. Rad1 {[%clk 0:02:56]}  Nf8 {[%clk 0:02:58]} 12. Kh1 {[%clk 0:02:56]}  Ne6 {[%clk 0:02:54]} 13. Bh4 {[%clk 0:02:56]}  b5 {[%clk 0:02:38]} 14. a3 {[%clk 0:02:53]}  Qb6 {[%clk 0:02:37]} 15. f3 {[%clk 0:02:52]}  a5 {[%clk 0:02:36]} 16. Bf2 {[%clk 0:02:49]}  Nh5 {[%clk 0:02:11]} 17. e4 {[%clk 0:02:33]}  Nhf4 {[%clk 0:02:10]} 18. exd5 {[%clk 0:02:23]}  Nxd3 {[%clk 0:01:49]} 19. Qxd3 {[%clk 0:02:23]}  cxd5 {[%clk 0:01:49]} 20. Nxd5 {[%clk 0:02:22]}  Qd8 {[%clk 0:01:46]} 21. Ndf4 {[%clk 0:02:11]}  Nxf4 {[%clk 0:01:39]} 22. Nxf4 {[%clk 0:02:12]}  Bf5 {[%clk 0:01:39]} 23. Qd2 {[%clk 0:01:41]}  Rc8 {[%clk 0:01:36]} 24. Rc1 {[%clk 0:01:40]}  Qd6 {[%clk 0:01:36]} 25. Ne2 {[%clk 0:01:29]}  Be6 {[%clk 0:01:22]} 26. Nc3 {[%clk 0:01:22]}  Bc4 {[%clk 0:01:17]} 27. Ne4 {[%clk 0:01:21]}  Qd7 {[%clk 0:01:00]} 28. Rfe1 {[%clk 0:01:21]}  f5 {[%clk 0:00:52]} 29. Nc5 {[%clk 0:01:11]}  Rxe1+ {[%clk 0:00:52]} 30. Qxe1 {[%clk 0:01:07]}  Qd8 {[%clk 0:00:23]} 31. Ne6 {[%clk 0:00:49]}  Qe8 {[%clk 0:00:19]} 32. Nxg7 {[%clk 0:00:47]}  Qxe1+ {[%clk 0:00:17]} 33. Bxe1 {[%clk 0:00:47]}  Kxg7 {[%clk 0:00:18]} 34. Bxa5 {[%clk 0:00:46]}  Re8 {[%clk 0:00:17]} 35. a4 {[%clk 0:00:38]}  Ra8 {[%clk 0:00:10]} 36. b4 {[%clk 0:00:20]}  Re8 {[%clk 0:00:07]} 37. axb5 {[%clk 0:00:19]}  Bxb5 {[%clk 0:00:08]} 38. Bb6 {[%clk 0:00:18]}  Re2 {[%clk 0:00:07]} 39. h4 {[%clk 0:00:17]}  Rd2 {[%clk 0:00:07]} 40. Bc5 {[%clk 0:00:17]}  Kh6 {[%clk 0:00:06]} 41. Kh2 {[%clk 0:00:17]}  f4 {[%clk 0:00:06]} 42. Re1 {[%clk 0:00:15]}  Kh5 {[%clk 0:00:04]} 43. Re5+ {[%clk 0:00:15]}  Kh6 {[%clk 0:00:04]} 44. Bf8# {[%clk 0:00:15]} 1-0


[Site "https://www.chess.com"]

[Event "Titled Tuesday Blitz October 5 2021"]
[White "Trent, Lawrence"]
[Black "Fier, Alexandr"]
[WhiteFideId "408638"]
[BlackFideId "2107139"]
[WhiteElo "2474"]
[BlackElo "2569"]
[Result "1-0"]
[Round "03"]
[TimeControl "180+1"]
[Date "2021.10.05"]
[WhiteClock "0:00:09"]
[BlackClock "0:00:13"]

1. e4 {[%clk 0:03:00]}  Nf6 {[%clk 0:02:59]} 2. e5 {[%clk 0:02:59]}  Nd5 {[%clk 0:02:59]} 3. Bc4 {[%clk 0:02:56]}  Nb6 {[%clk 0:02:58]} 4. Bb3 {[%clk 0:02:56]}  c5 {[%clk 0:02:55]} 5. d3 {[%clk 0:02:56]}  Nc6 {[%clk 0:02:55]} 6. Nf3 {[%clk 0:02:56]}  Na5 {[%clk 0:02:54]} 7. O-O {[%clk 0:02:56]}  Nxb3 {[%clk 0:02:54]} 8. axb3 {[%clk 0:02:56]}  d6 {[%clk 0:02:54]} 9. exd6 {[%clk 0:02:56]}  e6 {[%clk 0:02:55]} 10. Bg5 {[%clk 0:02:52]}  Qxd6 {[%clk 0:02:54]} 11. Nc3 {[%clk 0:02:53]}  Bd7 {[%clk 0:02:50]} 12. Re1 {[%clk 0:02:48]}  Bc6 {[%clk 0:02:44]} 13. Ne5 {[%clk 0:02:48]}  Nd7 {[%clk 0:02:31]} 14. Nc4 {[%clk 0:02:15]}  Qc7 {[%clk 0:02:29]} 15. d4 {[%clk 0:02:15]}  cxd4 {[%clk 0:02:15]} 16. Qxd4 {[%clk 0:02:12]}  h6 {[%clk 0:02:14]} 17. Bf4 {[%clk 0:02:07]}  Qd8 {[%clk 0:02:14]} 18. Nd6+ {[%clk 0:01:43]}  Bxd6 {[%clk 0:02:13]} 19. Bxd6 {[%clk 0:01:44]}  Qf6 {[%clk 0:02:11]} 20. Qb4 {[%clk 0:01:06]}  Qg6 {[%clk 0:02:06]} 21. Bg3 {[%clk 0:01:06]}  h5 {[%clk 0:02:02]} 22. Ne4 {[%clk 0:01:01]}  Bxe4 {[%clk 0:00:54]} 23. Rxe4 {[%clk 0:00:59]}  b6 {[%clk 0:00:54]} 24. Bd6 {[%clk 0:00:33]}  f5 {[%clk 0:00:52]} 25. Re3 {[%clk 0:00:29]}  Kf7 {[%clk 0:00:52]} 26. Rae1 {[%clk 0:00:28]}  Rhe8 {[%clk 0:00:52]} 27. Rg3 {[%clk 0:00:23]}  Qh6 {[%clk 0:00:52]} 28. Bf4 {[%clk 0:00:23]}  Qf6 {[%clk 0:00:44]} 29. Qd2 {[%clk 0:00:15]}  Nc5 {[%clk 0:00:42]} 30. Be5 {[%clk 0:00:16]}  Qh6 {[%clk 0:00:38]} 31. Qxh6 {[%clk 0:00:14]}  gxh6 {[%clk 0:00:38]} 32. Rg7+ {[%clk 0:00:15]}  Kf8 {[%clk 0:00:39]} 33. Rh7 {[%clk 0:00:13]}  Rad8 {[%clk 0:00:38]} 34. h3 {[%clk 0:00:07]}  Rd7 {[%clk 0:00:37]} 35. Rxh6 {[%clk 0:00:07]}  Ke7 {[%clk 0:00:34]} 36. Rxh5 {[%clk 0:00:06]}  Kd8 {[%clk 0:00:34]} 37. Bc3 {[%clk 0:00:06]}  Kc8 {[%clk 0:00:34]} 38. Rh6 {[%clk 0:00:05]}  Rde7 {[%clk 0:00:24]} 39. Be5 {[%clk 0:00:04]}  Rd7 {[%clk 0:00:23]} 40. Bf4 {[%clk 0:00:04]}  Rde7 {[%clk 0:00:22]} 41. Be5 {[%clk 0:00:02]}  Rd7 {[%clk 0:00:21]} 42. f3 {[%clk 0:00:02]}  Kb7 {[%clk 0:00:21]} 43. b4 {[%clk 0:00:03]}  Na4 {[%clk 0:00:21]} 44. b3 {[%clk 0:00:03]}  Rc8 {[%clk 0:00:18]} 45. bxa4 {[%clk 0:00:04]}  Rxc2 {[%clk 0:00:19]} 46. a5 {[%clk 0:00:04]}  Rdd2 {[%clk 0:00:20]} 47. Rg6 {[%clk 0:00:04]}  Ka6 {[%clk 0:00:18]} 48. Rg7 {[%clk 0:00:04]}  Kb5 {[%clk 0:00:18]} 49. Bf4 {[%clk 0:00:05]}  Kxb4 {[%clk 0:00:18]} 50. axb6 {[%clk 0:00:06]}  Rd8 {[%clk 0:00:15]} 51. b7 {[%clk 0:00:06]}  e5 {[%clk 0:00:15]} 52. b8=Q+ {[%clk 0:00:07]}  Rxb8 {[%clk 0:00:15]} 53. Bxe5 {[%clk 0:00:08]}  Rbc8 {[%clk 0:00:16]} 54. Rb7+ {[%clk 0:00:08]}  Kc4 {[%clk 0:00:16]} 55. Rc7+ {[%clk 0:00:08]}  Rxc7 {[%clk 0:00:16]} 56. Bxc7 {[%clk 0:00:09]}  Kd3 {[%clk 0:00:16]} 57. Bf4 {[%clk 0:00:09]}  a5 {[%clk 0:00:16]} 58. Ra1 {[%clk 0:00:08]}  Rc5 {[%clk 0:00:17]} 59. h4 {[%clk 0:00:09]}  Kc2 {[%clk 0:00:15]} 60. h5 {[%clk 0:00:09]}  Kb2 {[%clk 0:00:16]} 61. Re1 {[%clk 0:00:08]}  a4 {[%clk 0:00:16]} 62. h6 {[%clk 0:00:08]}  Rc7 {[%clk 0:00:16]} 63. Be5+ {[%clk 0:00:08]}  Kb3 {[%clk 0:00:15]} 64. Bg7 {[%clk 0:00:09]}  a3 {[%clk 0:00:13]} 65. h7 {[%clk 0:00:09]} 1-0


[Site "https://www.chess.com"]

[Event "Titled Tuesday Blitz October 5 2021"]
[White "Tristan, Leonardo"]
[Black "Khusnutdinov, Rustam"]
[WhiteFideId "113816"]
[BlackFideId "13701703"]
[WhiteElo "2404"]
[BlackElo "2571"]
[Result "0-1"]
[Round "03"]
[TimeControl "180+1"]
[Date "2021.10.05"]
[WhiteClock "0:00:06"]
[BlackClock "0:00:18"]

1. d4 {[%clk 0:03:00]}  d5 {[%clk 0:02:56]} 2. Nf3 {[%clk 0:03:01]}  e6 {[%clk 0:02:55]} 3. Bf4 {[%clk 0:03:01]}  c5 {[%clk 0:02:54]} 4. e3 {[%clk 0:03:01]}  Nc6 {[%clk 0:02:54]} 5. Nbd2 {[%clk 0:02:55]}  Nf6 {[%clk 0:02:54]} 6. c3 {[%clk 0:02:55]}  Nh5 {[%clk 0:02:53]} 7. Bg5 {[%clk 0:02:53]}  Qb6 {[%clk 0:02:53]} 8. dxc5 {[%clk 0:02:53]}  Bxc5 {[%clk 0:02:54]} 9. b4 {[%clk 0:02:53]}  Bf8 {[%clk 0:02:54]} 10. b5 {[%clk 0:02:46]}  Na5 {[%clk 0:02:48]} 11. Nb3 {[%clk 0:02:27]}  h6 {[%clk 0:02:43]} 12. Bh4 {[%clk 0:02:25]}  g5 {[%clk 0:02:43]} 13. Nfd4 {[%clk 0:02:25]}  Nf6 {[%clk 0:02:34]} 14. Bg3 {[%clk 0:02:25]}  Ne4 {[%clk 0:02:35]} 15. Bd3 {[%clk 0:02:17]}  Nxg3 {[%clk 0:02:28]} 16. hxg3 {[%clk 0:02:17]}  Bg7 {[%clk 0:02:29]} 17. g4 {[%clk 0:02:11]}  Bd7 {[%clk 0:02:28]} 18. a4 {[%clk 0:02:08]}  Rc8 {[%clk 0:02:18]} 19. O-O {[%clk 0:01:29]}  O-O {[%clk 0:02:06]} 20. Rc1 {[%clk 0:01:09]}  Rc7 {[%clk 0:01:40]} 21. Nxa5 {[%clk 0:01:04]}  Qxa5 {[%clk 0:01:41]} 22. c4 {[%clk 0:01:05]}  Rfc8 {[%clk 0:01:41]} 23. c5 {[%clk 0:01:04]}  Qb4 {[%clk 0:01:35]} 24. Qb3 {[%clk 0:00:50]}  Qxb3 {[%clk 0:01:14]} 25. Nxb3 {[%clk 0:00:51]}  Bb2 {[%clk 0:01:14]} 26. Rb1 {[%clk 0:00:40]}  Ba3 {[%clk 0:01:14]} 27. b6 {[%clk 0:00:41]}  axb6 {[%clk 0:01:13]} 28. cxb6 {[%clk 0:00:42]}  Rc3 {[%clk 0:01:11]} 29. Bb5 {[%clk 0:00:32]}  Bxb5 {[%clk 0:01:09]} 30. axb5 {[%clk 0:00:33]}  Bb4 {[%clk 0:01:01]} 31. Rb2 {[%clk 0:00:20]}  Kg7 {[%clk 0:00:52]} 32. Ra1 {[%clk 0:00:20]}  R3c4 {[%clk 0:00:37]} 33. Ra7 {[%clk 0:00:17]}  Rb8 {[%clk 0:00:37]} 34. f3 {[%clk 0:00:15]}  Kf6 {[%clk 0:00:34]} 35. Kf2 {[%clk 0:00:15]}  Ke7 {[%clk 0:00:34]} 36. Nd4 {[%clk 0:00:11]}  Kd6 {[%clk 0:00:32]} 37. Nb3 {[%clk 0:00:07]}  Rc3 {[%clk 0:00:24]} 38. Ke2 {[%clk 0:00:06]}  Bc5 {[%clk 0:00:23]} 39. Nxc5 {[%clk 0:00:04]}  Kxc5 {[%clk 0:00:23]} 40. Kd2 {[%clk 0:00:05]}  Rc4 {[%clk 0:00:22]} 41. Ra1 {[%clk 0:00:04]}  Kxb6 {[%clk 0:00:22]} 42. Rh1 {[%clk 0:00:05]}  Rh8 {[%clk 0:00:20]} 43. Ke2 {[%clk 0:00:05]}  Rc5 {[%clk 0:00:20]} 44. Rhb1 {[%clk 0:00:05]}  h5 {[%clk 0:00:21]} 45. Rh1 {[%clk 0:00:05]}  h4 {[%clk 0:00:21]} 46. Rhb1 {[%clk 0:00:05]}  Ra8 {[%clk 0:00:21]} 47. Kf2 {[%clk 0:00:04]}  Ra5 {[%clk 0:00:21]} 48. g3 {[%clk 0:00:04]}  hxg3+ {[%clk 0:00:21]} 49. Kxg3 {[%clk 0:00:04]}  Raxb5 {[%clk 0:00:22]} 50. Rxb5+ {[%clk 0:00:04]}  Rxb5 {[%clk 0:00:23]} 51. Rh1 {[%clk 0:00:04]}  Rb3 {[%clk 0:00:23]} 52. Rh5 {[%clk 0:00:04]}  Rxe3 {[%clk 0:00:22]} 53. Rxg5 {[%clk 0:00:04]}  e5 {[%clk 0:00:22]} 54. Rf5 {[%clk 0:00:04]}  d4 {[%clk 0:00:19]} 55. Rxf7 {[%clk 0:00:04]}  Kc6 {[%clk 0:00:17]} 56. g5 {[%clk 0:00:02]}  d3 {[%clk 0:00:17]} 57. Kf2 {[%clk 0:00:01]}  Re2+ {[%clk 0:00:17]} 58. Kf1 {[%clk 0:00:02]}  Ra2 {[%clk 0:00:17]} 59. g6 {[%clk 0:00:02]}  Ra1+ {[%clk 0:00:17]} 60. Kf2 {[%clk 0:00:02]}  d2 {[%clk 0:00:18]} 61. Rf6+ {[%clk 0:00:02]}  Kc7 {[%clk 0:00:17]} 62. Rf7+ {[%clk 0:00:03]}  Kb6 {[%clk 0:00:17]} 63. Rd7 {[%clk 0:00:03]}  d1=Q {[%clk 0:00:16]} 64. Rxd1 {[%clk 0:00:04]}  Rxd1 {[%clk 0:00:17]} 65. g7 {[%clk 0:00:05]}  Rd8 {[%clk 0:00:18]} 66. g8=Q {[%clk 0:00:06]}  Rxg8 {[%clk 0:00:18]} 0-1


[Site "https://www.chess.com"]

[Event "Titled Tuesday Blitz October 5 2021"]
[White "Viani Antonio Dcunha"]
[Black "Kovalev, Vladislav"]
[WhiteFideId "5027330"]
[BlackFideId "13504398"]
[WhiteElo "2366"]
[BlackElo "2573"]
[Result "0-1"]
[Round "03"]
[TimeControl "180+1"]
[Date "2021.10.05"]
[WhiteClock "0:00:13"]
[BlackClock "0:00:11"]

1. e4 {[%clk 0:03:00]}  e5 {[%clk 0:02:59]} 2. Nf3 {[%clk 0:02:59]}  Nc6 {[%clk 0:03:00]} 3. d4 {[%clk 0:02:57]}  exd4 {[%clk 0:03:00]} 4. Nxd4 {[%clk 0:02:58]}  Nf6 {[%clk 0:03:00]} 5. Nc3 {[%clk 0:02:57]}  Bb4 {[%clk 0:03:00]} 6. Nxc6 {[%clk 0:02:57]}  bxc6 {[%clk 0:03:01]} 7. Bd3 {[%clk 0:02:57]}  O-O {[%clk 0:03:01]} 8. O-O {[%clk 0:02:57]}  d5 {[%clk 0:03:02]} 9. exd5 {[%clk 0:02:57]}  cxd5 {[%clk 0:03:02]} 10. Bg5 {[%clk 0:02:57]}  c6 {[%clk 0:03:03]} 11. Qf3 {[%clk 0:02:57]}  Bd6 {[%clk 0:03:02]} 12. Rae1 {[%clk 0:02:50]}  h6 {[%clk 0:03:01]} 13. Bxf6 {[%clk 0:02:50]}  Qxf6 {[%clk 0:03:02]} 14. Qxf6 {[%clk 0:02:49]}  gxf6 {[%clk 0:03:03]} 15. Nd1 {[%clk 0:02:49]}  Be6 {[%clk 0:02:50]} 16. Ne3 {[%clk 0:02:47]}  Rfe8 {[%clk 0:02:50]} 17. c4 {[%clk 0:02:41]}  Bb4 {[%clk 0:02:22]} 18. Rd1 {[%clk 0:02:39]}  d4 {[%clk 0:02:12]} 19. Nc2 {[%clk 0:02:31]}  c5 {[%clk 0:01:31]} 20. Nxb4 {[%clk 0:02:28]}  cxb4 {[%clk 0:01:32]} 21. Rfe1 {[%clk 0:02:26]}  Red8 {[%clk 0:01:29]} 22. Re4 {[%clk 0:02:10]}  Rac8 {[%clk 0:01:21]} 23. b3 {[%clk 0:02:07]}  Rc6 {[%clk 0:01:19]} 24. Kf1 {[%clk 0:01:59]}  Kg7 {[%clk 0:01:16]} 25. Rf4 {[%clk 0:01:57]}  a5 {[%clk 0:01:08]} 26. Bc2 {[%clk 0:01:44]}  Rcd6 {[%clk 0:01:07]} 27. Ke2 {[%clk 0:01:43]}  a4 {[%clk 0:01:04]} 28. Rd3 {[%clk 0:01:38]}  axb3 {[%clk 0:00:56]} 29. Bxb3 {[%clk 0:01:36]}  R6d7 {[%clk 0:00:37]} 30. c5 {[%clk 0:01:29]}  Rc7 {[%clk 0:00:20]} 31. Rfxd4 {[%clk 0:01:18]}  Rxd4 {[%clk 0:00:18]} 32. Rxd4 {[%clk 0:01:19]}  Rxc5 {[%clk 0:00:15]} 33. Rxb4 {[%clk 0:01:18]}  Bxb3 {[%clk 0:00:14]} 34. axb3 {[%clk 0:01:19]}  Rc2+ {[%clk 0:00:14]} 35. Ke3 {[%clk 0:01:17]}  Rb2 {[%clk 0:00:14]} 36. Rb5 {[%clk 0:01:12]}  f5 {[%clk 0:00:14]} 37. h4 {[%clk 0:01:09]}  Kg6 {[%clk 0:00:14]} 38. Kf3 {[%clk 0:01:06]}  h5 {[%clk 0:00:06]} 39. g3 {[%clk 0:01:06]}  f6 {[%clk 0:00:06]} 40. Ke3 {[%clk 0:01:02]}  Kg7 {[%clk 0:00:02]} 41. f3 {[%clk 0:01:00]}  Kg6 {[%clk 0:00:02]} 42. Kf4 {[%clk 0:01:00]}  Rb1 {[%clk 0:00:02]} 43. Rb8 {[%clk 0:00:47]}  Rb2 {[%clk 0:00:02]} 44. Rb6 {[%clk 0:00:32]}  Rb1 {[%clk 0:00:03]} 45. Rb8 {[%clk 0:00:27]}  Rb2 {[%clk 0:00:03]} 46. b4 {[%clk 0:00:27]}  Rb3 {[%clk 0:00:03]} 47. b5 {[%clk 0:00:28]}  Rb4+ {[%clk 0:00:04]} 48. Ke3 {[%clk 0:00:28]}  f4+ {[%clk 0:00:03]} 49. gxf4 {[%clk 0:00:27]}  Kf5 {[%clk 0:00:04]} 50. Rh8 {[%clk 0:00:26]}  Rb3+ {[%clk 0:00:04]} 51. Kd4 {[%clk 0:00:25]}  Kxf4 {[%clk 0:00:04]} 52. Rxh5 {[%clk 0:00:24]}  f5 {[%clk 0:00:04]} 53. Kc5 {[%clk 0:00:24]}  Rc3+ {[%clk 0:00:05]} 54. Kb6 {[%clk 0:00:23]}  Rxf3 {[%clk 0:00:06]} 55. Ka7 {[%clk 0:00:20]}  Kg4 {[%clk 0:00:05]} 56. Rh8 {[%clk 0:00:20]}  Ra3+ {[%clk 0:00:06]} 57. Kb7 {[%clk 0:00:19]}  f4 {[%clk 0:00:06]} 58. b6 {[%clk 0:00:19]}  f3 {[%clk 0:00:07]} 59. h5 {[%clk 0:00:17]}  f2 {[%clk 0:00:06]} 60. Rf8 {[%clk 0:00:17]}  Rf3 {[%clk 0:00:05]} 61. Rxf3 {[%clk 0:00:12]}  Kxf3 {[%clk 0:00:06]} 62. h6 {[%clk 0:00:08]}  f1=Q {[%clk 0:00:07]} 63. h7 {[%clk 0:00:08]}  Qh3 {[%clk 0:00:08]} 64. Ka8 {[%clk 0:00:08]}  Qxh7 {[%clk 0:00:07]} 65. b7 {[%clk 0:00:09]}  Qe4 {[%clk 0:00:08]} 66. Ka7 {[%clk 0:00:09]}  Qa4+ {[%clk 0:00:08]} 67. Kb8 {[%clk 0:00:09]}  Ke4 {[%clk 0:00:08]} 68. Kc8 {[%clk 0:00:10]}  Qc4+ {[%clk 0:00:09]} 69. Kd7 {[%clk 0:00:10]}  Qb5+ {[%clk 0:00:09]} 70. Kc7 {[%clk 0:00:11]}  Qc5+ {[%clk 0:00:10]} 71. Kb8 {[%clk 0:00:11]}  Kd5 {[%clk 0:00:10]} 72. Ka8 {[%clk 0:00:12]}  Qa5+ {[%clk 0:00:10]} 73. Kb8 {[%clk 0:00:13]}  Kd6 {[%clk 0:00:11]} 0-1


[Site "https://www.chess.com"]

[Event "Titled Tuesday Blitz October 5 2021"]
[White "Wagner, Dennis"]
[Black "Shuvalov, Evgenij"]
[WhiteFideId "24650684"]
[BlackFideId "4187237"]
[WhiteElo "2355"]
[BlackElo "2129"]
[Result "1-0"]
[Round "03"]
[TimeControl "180+1"]
[Date "2021.10.05"]
[WhiteClock "0:01:16"]
[BlackClock "0:00:17"]

1. d4 {[%clk 0:03:00]}  Nf6 {[%clk 0:02:02]} 2. c4 {[%clk 0:03:00]}  g6 {[%clk 0:02:01]} 3. h4 {[%clk 0:02:42]}  c6 {[%clk 0:01:54]} 4. Nc3 {[%clk 0:02:41]}  d5 {[%clk 0:01:54]} 5. cxd5 {[%clk 0:02:41]}  cxd5 {[%clk 0:01:55]} 6. Bf4 {[%clk 0:02:41]}  a6 {[%clk 0:01:46]} 7. e3 {[%clk 0:02:41]}  Nc6 {[%clk 0:01:46]} 8. Be2 {[%clk 0:02:40]}  h6 {[%clk 0:01:42]} 9. Rc1 {[%clk 0:02:33]}  Bg7 {[%clk 0:01:41]} 10. Nf3 {[%clk 0:02:31]}  O-O {[%clk 0:01:40]} 11. Ne5 {[%clk 0:02:25]}  Bd7 {[%clk 0:01:31]} 12. Qb3 {[%clk 0:02:09]}  Na5 {[%clk 0:01:24]} 13. Qb4 {[%clk 0:02:09]}  b5 {[%clk 0:00:59]} 14. Nxd7 {[%clk 0:01:57]}  Nxd7 {[%clk 0:01:00]} 15. Nxd5 {[%clk 0:01:57]}  e5 {[%clk 0:00:58]} 16. Bg5 {[%clk 0:01:26]}  f6 {[%clk 0:00:39]} 17. Bd3 {[%clk 0:01:16]}  fxg5 {[%clk 0:00:32]} 18. Ne7+ {[%clk 0:01:16]}  Kf7 {[%clk 0:00:19]} 19. Bxg6+ {[%clk 0:01:15]}  Ke6 {[%clk 0:00:18]} 20. d5+ {[%clk 0:01:15]}  Kf6 {[%clk 0:00:17]} 21. Qd6# {[%clk 0:01:16]} 1-0


[Site "https://www.chess.com"]

[Event "Titled Tuesday Blitz October 5 2021"]
[White "Yaksin, Oleg"]
[Black "Visakh N R"]
[WhiteFideId "24105880"]
[BlackFideId "25012223"]
[WhiteElo "2256"]
[BlackElo "2454"]
[Result "0-1"]
[Round "03"]
[TimeControl "180+1"]
[Date "2021.10.05"]
[WhiteClock "0:00:04"]
[BlackClock "0:00:49"]

1. d4 {[%clk 0:02:57]}  Nf6 {[%clk 0:02:58]} 2. c4 {[%clk 0:02:57]}  c5 {[%clk 0:02:57]} 3. d5 {[%clk 0:02:56]}  e6 {[%clk 0:02:57]} 4. g3 {[%clk 0:02:56]}  exd5 {[%clk 0:02:57]} 5. cxd5 {[%clk 0:02:57]}  d6 {[%clk 0:02:57]} 6. Bg2 {[%clk 0:02:56]}  g6 {[%clk 0:02:57]} 7. Nc3 {[%clk 0:02:55]}  Bg7 {[%clk 0:02:58]} 8. Nf3 {[%clk 0:02:55]}  O-O {[%clk 0:02:58]} 9. O-O {[%clk 0:02:55]}  Re8 {[%clk 0:02:58]} 10. Bf4 {[%clk 0:02:56]}  Ne4 {[%clk 0:02:58]} 11. Rc1 {[%clk 0:02:30]}  Nxc3 {[%clk 0:02:06]} 12. bxc3 {[%clk 0:02:31]}  Bg4 {[%clk 0:02:06]} 13. Re1 {[%clk 0:02:20]}  Bxf3 {[%clk 0:01:58]} 14. Bxf3 {[%clk 0:02:19]}  Qe7 {[%clk 0:01:55]} 15. Qb3 {[%clk 0:02:16]}  b6 {[%clk 0:01:54]} 16. c4 {[%clk 0:02:09]}  Nd7 {[%clk 0:01:53]} 17. Bg2 {[%clk 0:02:08]}  Ne5 {[%clk 0:01:48]} 18. Bd2 {[%clk 0:02:06]}  h5 {[%clk 0:01:43]} 19. h3 {[%clk 0:02:04]}  Qf8 {[%clk 0:01:33]} 20. f4 {[%clk 0:02:02]}  Nd7 {[%clk 0:01:33]} 21. e4 {[%clk 0:02:02]}  Bd4+ {[%clk 0:01:31]} 22. Be3 {[%clk 0:01:59]}  Qg7 {[%clk 0:01:31]} 23. Kh2 {[%clk 0:01:51]}  h4 {[%clk 0:01:30]} 24. g4 {[%clk 0:01:50]}  Re7 {[%clk 0:01:29]} 25. Rcd1 {[%clk 0:01:38]}  Rae8 {[%clk 0:01:28]} 26. Bxd4 {[%clk 0:01:18]}  cxd4 {[%clk 0:01:28]} 27. Qb2 {[%clk 0:01:18]}  Qf6 {[%clk 0:01:17]} 28. Qf2 {[%clk 0:00:55]}  g5 {[%clk 0:01:15]} 29. Rf1 {[%clk 0:00:42]}  Nc5 {[%clk 0:00:59]} 30. Rxd4 {[%clk 0:00:25]}  gxf4 {[%clk 0:00:58]} 31. Re1 {[%clk 0:00:21]}  f3 {[%clk 0:00:52]} 32. Bxf3 {[%clk 0:00:16]}  Nxe4 {[%clk 0:00:51]} 33. Qg2 {[%clk 0:00:06]}  Qxd4 {[%clk 0:00:50]} 34. Bxe4 {[%clk 0:00:04]}  Rxe4 {[%clk 0:00:49]} 0-1


[Site "https://www.chess.com"]

[Event "Titled Tuesday Blitz October 5 2021"]
[White "Yakubboev, Nodirbek"]
[Black "Arabidze, Meri"]
[WhiteFideId "14203987"]
[BlackFideId "13604040"]
[WhiteElo "2464"]
[BlackElo "2432"]
[Result "0-1"]
[Round "03"]
[TimeControl "180+1"]
[Date "2021.10.05"]
[WhiteClock "0:00:11"]
[BlackClock "0:00:04"]

1. d4 {[%clk 0:02:15]}  d5 {[%clk 0:02:56]} 2. c4 {[%clk 0:02:13]}  e6 {[%clk 0:02:56]} 3. Nf3 {[%clk 0:02:13]}  Nf6 {[%clk 0:02:56]} 4. Nc3 {[%clk 0:02:13]}  Nbd7 {[%clk 0:02:57]} 5. Bg5 {[%clk 0:02:10]}  h6 {[%clk 0:02:57]} 6. Bh4 {[%clk 0:02:10]}  Be7 {[%clk 0:02:57]} 7. e3 {[%clk 0:02:09]}  O-O {[%clk 0:02:57]} 8. Qc2 {[%clk 0:02:09]}  c5 {[%clk 0:02:57]} 9. cxd5 {[%clk 0:02:01]}  Nxd5 {[%clk 0:02:58]} 10. Bxe7 {[%clk 0:01:57]}  Qxe7 {[%clk 0:02:59]} 11. dxc5 {[%clk 0:01:47]}  Nxc5 {[%clk 0:02:57]} 12. Rc1 {[%clk 0:01:26]}  Nb4 {[%clk 0:02:48]} 13. Qb1 {[%clk 0:01:19]}  Rd8 {[%clk 0:02:49]} 14. Rd1 {[%clk 0:01:11]}  Bd7 {[%clk 0:02:32]} 15. a3 {[%clk 0:01:08]}  Nc6 {[%clk 0:02:30]} 16. Be2 {[%clk 0:01:05]}  Be8 {[%clk 0:02:21]} 17. O-O {[%clk 0:01:04]}  a6 {[%clk 0:02:11]} 18. b4 {[%clk 0:00:55]}  Nd7 {[%clk 0:02:11]} 19. Ne4 {[%clk 0:00:52]}  Nde5 {[%clk 0:02:02]} 20. Qb2 {[%clk 0:00:43]}  Qc7 {[%clk 0:01:48]} 21. Rxd8 {[%clk 0:00:16]}  Rxd8 {[%clk 0:01:46]} 22. Rc1 {[%clk 0:00:16]}  Nxf3+ {[%clk 0:01:38]} 23. gxf3 {[%clk 0:00:16]}  Qe5 {[%clk 0:01:38]} 24. Qxe5 {[%clk 0:00:16]}  Nxe5 {[%clk 0:01:39]} 25. f4 {[%clk 0:00:17]}  Bc6 {[%clk 0:01:33]} 26. fxe5 {[%clk 0:00:09]}  Bxe4 {[%clk 0:01:33]} 27. f3 {[%clk 0:00:10]}  Bc6 {[%clk 0:01:24]} 28. Rc2 {[%clk 0:00:07]}  Kf8 {[%clk 0:00:58]} 29. Kf2 {[%clk 0:00:07]}  Ra8 {[%clk 0:00:53]} 30. e4 {[%clk 0:00:07]}  Ke7 {[%clk 0:00:53]} 31. Ke3 {[%clk 0:00:07]}  g5 {[%clk 0:00:52]} 32. f4 {[%clk 0:00:06]}  gxf4+ {[%clk 0:00:47]} 33. Kxf4 {[%clk 0:00:07]}  Kd7 {[%clk 0:00:37]} 34. Rc3 {[%clk 0:00:07]}  Bb5 {[%clk 0:00:32]} 35. Bxb5+ {[%clk 0:00:06]}  axb5 {[%clk 0:00:33]} 36. Rh3 {[%clk 0:00:06]}  Ke7 {[%clk 0:00:31]} 37. Rc3 {[%clk 0:00:06]}  Kd7 {[%clk 0:00:30]} 38. Rd3+ {[%clk 0:00:05]}  Ke7 {[%clk 0:00:30]} 39. Rh3 {[%clk 0:00:06]}  Ra6 {[%clk 0:00:24]} 40. Rc3 {[%clk 0:00:05]}  Kd7 {[%clk 0:00:24]} 41. Kg4 {[%clk 0:00:05]}  Ra8 {[%clk 0:00:18]} 42. Kh5 {[%clk 0:00:05]}  Rh8 {[%clk 0:00:16]} 43. Rc5 {[%clk 0:00:04]}  Ra8 {[%clk 0:00:14]} 44. Rxb5 {[%clk 0:00:04]}  Rxa3 {[%clk 0:00:14]} 45. Rxb7+ {[%clk 0:00:04]}  Ke8 {[%clk 0:00:14]} 46. Kxh6 {[%clk 0:00:05]}  Rh3+ {[%clk 0:00:14]} 47. Kg5 {[%clk 0:00:05]}  Rxh2 {[%clk 0:00:14]} 48. b5 {[%clk 0:00:06]}  Rg2+ {[%clk 0:00:14]} 49. Kf4 {[%clk 0:00:06]}  Rf2+ {[%clk 0:00:14]} 50. Ke3 {[%clk 0:00:07]}  Rb2 {[%clk 0:00:14]} 51. Kd4 {[%clk 0:00:07]}  Rb4+ {[%clk 0:00:13]} 52. Kc5 {[%clk 0:00:07]}  Rxe4 {[%clk 0:00:13]} 53. b6 {[%clk 0:00:08]}  Rxe5+ {[%clk 0:00:13]} 54. Kc6 {[%clk 0:00:08]}  Re1 {[%clk 0:00:12]} 55. Ra7 {[%clk 0:00:09]}  Rc1+ {[%clk 0:00:11]} 56. Kd6 {[%clk 0:00:09]}  Rd1+ {[%clk 0:00:11]} 57. Kc7 {[%clk 0:00:08]}  Rc1+ {[%clk 0:00:09]} 58. Kb8 {[%clk 0:00:08]}  f5 {[%clk 0:00:05]} 59. Rc7 {[%clk 0:00:08]}  Rb1 {[%clk 0:00:05]} 60. b7 {[%clk 0:00:08]}  f4 {[%clk 0:00:05]} 61. Kc8 {[%clk 0:00:08]}  f3 {[%clk 0:00:04]} 62. Rc3 {[%clk 0:00:08]}  f2 {[%clk 0:00:02]} 63. Rf3 {[%clk 0:00:08]}  Rc1+ {[%clk 0:00:02]} 64. Kb8 {[%clk 0:00:09]}  f1=Q {[%clk 0:00:02]} 65. Rxf1 {[%clk 0:00:09]}  Rxf1 {[%clk 0:00:03]} 66. Kc7 {[%clk 0:00:10]}  Rc1+ {[%clk 0:00:03]} 67. Kd6 {[%clk 0:00:10]}  Rb1 {[%clk 0:00:04]} 68. Kxe6 {[%clk 0:00:11]}  Rxb7 {[%clk 0:00:04]} 0-1


[Site "https://www.chess.com"]